[Event "Karel Janecek Open 2024"]
[Site "Prague"]
[Date "2024.03.05"]
[Round "7.16"]
[White "Harikrishnan.A.Ra"]
[Black "Senthil Maran K"]
[Result "1-0"]
[ECO "A05"]
[WhiteElo "2448"]
[BlackElo "2275"]
[Annotator "TA"]
[PlyCount "99"]
[EventDate "2024.02.22"]
[EventType "swiss"]
[EventCountry "CZE"]
[SourceTitle "playchess.com"]
[Source "ChessBase"]
[SourceQuality "1"]
[TimeControl "40/5400+30:1800+30"]

{[%evp 9,99,0,5,7,27,18,27,12,22,11,11,-5,44,41,54,40,50,39,39,42,48,47,56,39,45,31,26,33,50,28,42,35,49,33,76,81,94,82,107,135,129,132,104,125,133,135,138,139,127,128,160,120,258,250,239,197,187,191,202,197,274,205,360,342,367,369,370,375,361,356,446,439,694,694,818,815,719,460,564,564,541,533,508,501,1003,999,918,898,887,871,6343,6299]} 1. Nf3 {[%emt 0:01:27]} Nf6 {[%emt 0:02:07]} 2. g3 {[%emt 0:00:00]} b5 {[%emt 0:01:38]} 3. Na3 {[%emt 0:00:07]} a6 {[%emt 0:00:58]} 4. c4 {[%emt 0:00:24]} e6 {[%emt 0:05:13]} 5. b3 {[%emt 0:03:04]} Bb7 {[%emt 0:10:30]} 6. Bg2 {[%emt 0:08:29]} c6 {[%emt 0:12:56]} 7. O-O {[%emt 0:01:12]} d5 {[%emt 0:00:59]} 8. Bb2 {[%emt 0:09:03] White has an edge.} Nbd7 {[%emt 0:00:37]} 9. d4 {[%emt 0:15:59]} Be7 {[%emt 0:02:59]} 10. Nc2 {[%emt 0:07:12]} O-O {[%emt 0:05:58]} (10... dxc4 $11 11. bxc4 c5) 11. c5 $14 {[%emt 0:02:49]} Ne4 {[%emt 0:00:45]} 12. Nce1 {[%emt 0:00:48]} e5 {[%emt 0:02:20]} 13. e3 {[%emt 0:04:28]} exd4 {[%emt 0:10:09]} 14. exd4 {[%emt 0:00:13]} Bf6 {[%emt 0:01:04]} 15. Nd3 {[%emt 0:00:31]} Re8 {[%emt 0:01:20]} 16. Re1 {[%emt 0:00:40]} a5 {[%emt 0:00:19]} 17. Qc2 {[%emt 0:05:15]} g6 {[%emt 0:09:02]} 18. Nfe5 {[%emt 0:03:24]} Bg7 {[%emt 0:00:19]} 19. Re2 {[%emt 0:06:51]} (19. Bxe4 $5 dxe4 20. Rxe4 $11) 19... f6 {[%emt 0:03:00]} 20. Nxd7 {[%emt 0:02:44]} Qxd7 {[%emt 0:00:05]} 21. Rae1 {[%emt 0:00:42][%cal Rg2e4]} Ba6 {[%emt 0:10:06]} 22. b4 {[%emt 0:05:30]} a4 {[%emt 0:01:13]} 23. Bc1 {[%emt 0:03:14]} Ng5 {[%emt 0:04:38]} 24. Nf4 {[%emt 0:03:14]} Rxe2 {[%emt 0:02:37]} 25. Qxe2 {[%emt 0:00:30]} (25. Nxe2 $6 Ne6 $11) 25... Rd8 {[%emt 0:02:56]} 26. h4 {[%emt 0:05:09]} Ne4 {[%emt 0:00:04]} 27. Bxe4 {[%emt 0:00:24]} dxe4 {[%emt 0:00:07]} 28. Qxe4 {[%emt 0:00:32]} Bc8 {[%emt 0:01:49]} 29. Bb2 {[%emt 0:01:51] White is more active.} a3 {[%emt 0:01:58]} 30. Bxa3 {[%emt 0:00:47]} f5 {[%emt 0:00:08] This costs Black the game.} (30... g5 $16) 31. Qf3 $18 {[%emt 0:01:25]} Bxd4 {[%emt 0:00:46]} 32. Bb2 {[%emt 0:01:15]} Bxb2 {[%emt 0:01:20]} 33. Qb3+ {[%emt 0:00:10]} Qf7 {[%emt 0:00:31]} 34. Qxb2 {[%emt 0:00:06]} h6 {[%emt 0:02:14]} (34... Bd7 {was worth a try.} 35. Rd1 Re8) 35. Qc1 {[%emt 0:02:49]} Rd4 $2 {[%emt 0:01:48]} (35... Re8 36. a3 (36. Rxe8+ Qxe8 37. Ng2 Kh7 $16) 36... Rxe1+ 37. Qxe1 g5) 36. Qc3 {[%emt 0:01:08]} Re4 {[%emt 0:02:13]} 37. Rd1 {[%emt 0:01:29]} g5 {[%emt 0:00:10]} 38. hxg5 {[%emt 0:00:37]} hxg5 {[%emt 0:00:02]} 39. Nh3 {[%emt 0:00:25]} Qe7 {[%emt 0:00:34]} 40. Qd2 {[%emt 0:01:08] White is clearly winning.} g4 {[%emt 0:02:24]} (40... Be6 $142 41. Qxg5+ (41. Nxg5 Bd5 $18) 41... Qg7 42. Qxg7+ (42. Qd8+ Qf8 $18) 42... Kxg7) 41. Ng5 {[%emt 0:32:52]} Re2 {[%emt 0:04:06]} 42. Qd8+ {[%emt 0:00:00]} Qe8 {[%emt 0:00:15]} 43. Qf6 {[%emt 0:00:00] [#] White threatens Rd8 and mate.} Re1+ {[%emt 0:00:19]} 44. Rxe1 {[%emt 0:00:00]} Qxe1+ {[%emt 0:00:05][%mdl 4096] Endgame. KQB-KQN} 45. Kg2 {[%emt 0:00:00]} Qe8 {[%emt 0:00:27] Repels Qg6+} 46. Qh6 {[%emt 0:00:00]} Qe7 {[%emt 0:00:41]} (46... f4 $142 47. Qh7+ (47. gxf4 Bf5 $18) 47... Kf8 48. Qh8+ (48. gxf4 Qd7 $18) 48... Ke7 49. Qg7+ Kd8 50. Nf7+ (50. gxf4 g3 $18) 50... Kc7 51. Nd6+ (51. gxf4 Qe4+ 52. Kg3 Qf3+ 53. Kh4 Kb8 $18) 51... Qd7 52. Qxd7+ Bxd7 53. gxf4 Be6) 47. Qg6+ {[%emt 0:00:00]} (47. Qxc6 $2 {too greedy.} Bb7 $19) 47... Qg7 {[%emt 0:00:09]} 48. Qe8+ {[%emt 0:00:00]} (48. Qxc6 $2 {perishes.} Bb7 $19) 48... Qf8 {[%emt 0:00:06]} 49. Qxc6 {[%emt 0:00:00][%cal Oc6c7] [#] And now Qc7! would win.} Kh8 {[%emt 0:02:02]} 50. Qc7 {[%emt 0:00:00] Weighted Error Value: White=0.16 (very precise) /Black=0.34.  Mistake:       	---       	Black=6      Inaccurate:     	---       	Black=1      OK:         	White=13    	Black=15     Best:        	White=9     	---} 1-0

[Event "Karel Janecek Open 2024"]
[Site "Prague"]
[Date "2024.03.05"]
[Round "7.17"]
[White "Belenkaya, Dina"]
[Black "Roubalik, Jakub"]
[Result "1/2-1/2"]
[ECO "D36"]
[WhiteElo "2202"]
[BlackElo "2351"]
[Annotator "TA"]
[PlyCount "195"]
[EventDate "2024.02.22"]
[EventType "swiss"]
[EventCountry "CZE"]
[SourceTitle "playchess.com"]
[Source "ChessBase"]
[SourceQuality "1"]
[TimeControl "40/5400+30:1800+30"]

{[%evp 84,195,0,0,0,0,0,0,0,0,0,-23,0,0,0,0,0,0,0,-18,0,0,0,0,0,0,8,8,8,0,0,0,0,0,0,0,0,0,0,0,0,0,0,0,0,0,0,0,0,0,0,0,0,0,0,0,0,0,0,0,0,0,0,0,0,0,0,0,0,0,18,8,42,20,26,0,6,7,7,0,0,0,0,0,0,0,0,0,0,0,0,0,0,0,0,0,0,0,0,0,0,0,0,0,0,0,0,0,0,0,0,0,0,0]} 1. d4 {[%emt 0:03:42]} Nf6 {[%emt 0:00:48]} 2. c4 {[%emt 0:00:04]} e6 {[%emt 0:00:05]} 3. Nc3 {[%emt 0:00:06]} d5 {[%emt 0:00:16]} 4. cxd5 {[%emt 0:01:09]} exd5 {[%emt 0:00:06]} 5. Bg5 {[%emt 0:00:20]} c6 {[%emt 0:00:09]} 6. e3 {[%emt 0:00:05]} Be7 {[%emt 0:00:16]} 7. Bd3 {[%emt 0:00:13]} Nbd7 {[%emt 0:00:22]} 8. Qc2 {[%emt 0:00:22]} h6 {[%emt 0:04:25]} 9. Bh4 {[%emt 0:02:53]} Nh5 {[%emt 0:00:08]} 10. Bxe7 {[%emt 0:00:34]} Qxe7 {[%emt 0:00:08]} 11. Nge2 {[%emt 0:00:41]} Nb6 {[%emt 0:01:14]} 12. O-O {[%emt 0:02:16] D36: Damengambit (Abtauschvariante).} O-O {[%emt 0:05:02]} 13. Na4 {[%emt 0:09:26]} Nxa4 {[%emt 0:03:33]} 14. Qxa4 {[%emt 0:06:16]} Bd7 $146 {[%emt 0:01:05]} ({Predecessor:} 14... Bg4 15. Qc2 Rae8 16. Rab1 a5 17. a3 Bxe2 18. Bxe2 Nf4 19. Bf3 Ne6 20. b4 axb4 21. axb4 {1-0 Koelle,T (2324)-Hummel,D (2649) GER-ch Net blitz qual2 2021 (9)}) 15. Qa5 {[%emt 0:02:58]} Nf6 {[%emt 0:13:50]} 16. Rfc1 {[%emt 0:01:54]} Ng4 {[%emt 0:13:41]} 17. Qc7 {[%emt 0:02:17]} Rfc8 {[%emt 0:06:58]} 18. Qf4 {[%emt 0:02:02]} Nf6 {[%emt 0:00:10]} 19. Nc3 {[%emt 0:05:36]} Ne8 {[%emt 0:06:08]} 20. Na4 {[%emt 0:02:31]} Nd6 {[%emt 0:00:55]} 21. Nc5 {[%emt 0:04:34]} Re8 {[%emt 0:06:43]} 22. Rc3 {[%emt 0:01:53]} Rad8 {[%emt 0:01:09]} 23. b4 {[%emt 0:02:48]} Bc8 {[%emt 0:01:23]} 24. Rac1 {[%emt 0:07:10]} Qf8 {[%emt 0:07:14]} 25. h4 {[%emt 0:07:01]} g6 {[%emt 0:08:30]} 26. Qf6 {[%emt 0:05:44]} Qe7 {[%emt 0:03:39]} 27. Qxe7 {[%emt 0:00:47]} Rxe7 {[%emt 0:00:01]} 28. g3 {[%emt 0:01:26]} Kg7 {[%emt 0:00:42]} 29. Ra3 {[%emt 0:02:28]} a6 {[%emt 0:00:23]} 30. Rac3 {[%emt 0:01:05]} Bf5 {[%emt 0:00:30]} 31. Be2 {[%emt 0:01:04]} g5 {[%emt 0:00:47]} 32. h5 {[%emt 0:01:16]} Bc8 {[%emt 0:10:20]} 33. a4 {[%emt 0:00:51]} Rde8 {[%emt 0:00:54]} 34. Rb1 {[%emt 0:02:19]} Bf5 {[%emt 0:00:13]} 35. Rb2 {[%emt 0:00:33]} Ra8 {[%emt 0:00:20]} 36. Rc1 {[%emt 0:02:15]} Ra7 {[%emt 0:02:16]} 37. Nb3 {[%emt 0:02:37]} Ra8 {[%emt 0:00:36]} 38. Nd2 {[%emt 0:00:38]} Ra7 {[%emt 0:01:17]} 39. Rc5 {[%emt 0:00:45]} Be6 {[%emt 0:01:25]} 40. Bd3 {[%emt 0:03:36]} Bg4 {[%emt 0:01:03]} 41. b5 {[%emt 0:36:19]} axb5 {[%emt 0:30:20]} 42. axb5 {[%emt 0:00:02]} Ra1+ {[%emt 0:00:00]} 43. Kg2 {[%emt 0:00:00]} Rc7 {[%emt 0:00:00]} 44. bxc6 {[%emt 0:00:00]} bxc6 {[%emt 0:00:00]} 45. Nf3 {[%emt 0:00:00]} Ra3 {[%emt 0:00:00]} 46. Ne5 {[%emt 0:02:00]} Bxh5 {[%emt 0:00:00]} 47. Bf1 {[%emt 0:03:45]} (47. Rxc6 $2 Rxc6 48. Nxc6 Rxd3 $19) (47. g4 Bxg4 48. Nxg4 Rxd3 $15) 47... f6 {[%emt 0:00:00]} 48. Rxc6 {[%emt 0:00:58]} Rxc6 {[%emt 0:00:10]} 49. Nxc6 {[%emt 0:00:01]} Bg6 {[%emt 0:00:12]} 50. Ne7 {[%emt 0:01:08]} Be4+ {[%emt 0:00:33]} 51. f3 {[%emt 0:00:24]} Nf5 {[%emt 0:00:08]} 52. Nxf5+ {[%emt 0:01:23]} Bxf5 {[%emt 0:00:02]} 53. g4 {[%emt 0:00:46]} Be6 {[%emt 0:02:23]} 54. Kf2 {[%emt 0:00:12]} Ra7 {[%emt 0:00:47]} 55. Bd3 {[%emt 0:00:27]} Bf7 {[%emt 0:01:18]} 56. Rb5 {[%emt 0:00:37]} Ra2+ {[%emt 0:00:26]} 57. Be2 {[%emt 0:00:59]} Bg6 {[%emt 0:01:55]} 58. Rb7+ {[%emt 0:00:18]} (58. Rxd5 $2 Bd3 59. Kg3 (59. Rd7+ $2 Kg6 $19) 59... Bxe2 $19 (59... Rxe2 $2 60. Rd7+ Kg6 61. Re7 $19)) 58... Kf8 {[%emt 0:00:03]} 59. Rb8+ {[%emt 0:00:51]} Ke7 {[%emt 0:00:42]} 60. Rb7+ {[%emt 0:00:10]} Kd6 {[%emt 0:01:04]} 61. Rb6+ {[%emt 0:00:57]} Kc7 {[%emt 0:00:57]} 62. Ra6 {[%emt 0:02:21]} (62. Rxf6 $2 Bd3 63. Kg3 (63. Rf7+ $2 Kc6 $19) 63... Rxe2 $19 (63... Bxe2 64. Rxh6 Bc4 65. Rg6 $15)) 62... Rb2 {[%emt 0:00:42]} 63. Ra3 {[%emt 0:00:57]} (63. Rxf6 $2 Bd3 64. Kg3 (64. Rf7+ $2 Kb6 $19) 64... Rxe2 $19 (64... Bxe2 65. Rxh6 Bc4 66. Rg6 $15)) 63... h5 {[%emt 0:00:48]} 64. gxh5 {[%emt 0:00:05]} Bxh5 {[%emt 0:00:01]} 65. Ke1 {[%emt 0:00:08]} Rb1+ {[%emt 0:00:13]} 66. Kd2 {[%emt 0:00:07]} Rb2+ {[%emt 0:00:09]} 67. Kd1 {[%emt 0:00:14]} Kd6 {[%emt 0:00:36]} 68. Ra6+ {[%emt 0:00:14]} Ke7 {[%emt 0:00:06]} 69. Ra7+ {[%emt 0:00:10]} Ke6 {[%emt 0:00:30]} 70. Rg7 {[%emt 0:00:21]} Be8 {[%emt 0:00:51]} 71. Bd3 {[%emt 0:00:59]} Ba4+ {[%emt 0:00:32]} 72. Ke1 {[%emt 0:00:45]} Rh2 {[%emt 0:01:15]} 73. Ba6 {[%emt 0:00:34]} Bb3 {[%emt 0:00:30]} 74. Bc8+ {[%emt 0:00:10]} Kd6 {[%emt 0:00:02]} 75. Rd7+ {[%emt 0:00:18]} Kc6 {[%emt 0:00:04]} 76. Rf7 {[%emt 0:00:07]} Rh6 {[%emt 0:00:08]} 77. Kf2 {[%emt 0:00:21]} Bc2 {[%emt 0:01:05]} 78. Kg3 {[%emt 0:00:15]} Bd3 {[%emt 0:00:20]} 79. e4 {[%emt 0:03:09]} dxe4 {[%emt 0:00:14]} 80. fxe4 {[%emt 0:00:01]} Rh4 $1 {[%emt 0:00:21]} 81. Bb7+ {[%emt 0:00:38]} Kb6 {[%emt 0:00:17]} 82. Kf3 {[%emt 0:01:12]} ({Doch nicht} 82. Rxf6+ Kxb7 83. e5 Rxd4 84. Rf7+ Kc6 $17) 82... Rh3+ {[%emt 0:00:40]} 83. Kf2 {[%emt 0:00:13]} Rh4 {[%emt 0:00:18]} 84. Ke3 {[%emt 0:00:03]} (84. Rxf6+ Kxb7 85. Rg6 Rxe4 (85... Bxe4 86. Rxg5 Kc6 87. Ra5 $17) 86. Rxg5 Rxd4 $19) 84... Rh3+ {[%emt 0:00:53]} 85. Kd2 {[%emt 0:00:02]} Bc4 {[%emt 0:01:18]} 86. d5 {[%emt 0:01:28]} Rd3+ {[%emt 0:00:58]} 87. Kc2 {[%emt 0:00:01]} Re3 {[%emt 0:00:36]} 88. Ba8 {[%emt 0:01:29]} Rxe4 {[%emt 0:00:45]} 89. Rxf6+ {[%emt 0:00:21]} Kc5 {[%emt 0:00:19]} 90. d6 {[%emt 0:00:23]} Re2+ {[%emt 0:00:31]} 91. Kd1 {[%emt 0:00:06]} Re8 {[%emt 0:00:12]} (91... Re6 $5 92. Rf5+ $8 Kxd6 $11) 92. Bf3 {[%emt 0:00:29]} Rd8 {[%emt 0:00:16]} 93. Rf5+ {[%emt 0:00:33]} Kxd6 {[%emt 0:00:06]} 94. Rxg5 {[%emt 0:00:05]} Ke6+ {[%emt 0:00:15]} 95. Ke1 {[%emt 0:00:06]} Kf6 {[%emt 0:00:09]} 96. Rc5 {[%emt 0:00:07]} Be6 {[%emt 0:00:15]} 97. Kf2 {[%emt 0:00:10]} Rd6 {[%emt 0:00:14]} 98. Ke3 {[%emt 0:00:04]} 1/2-1/2

[Event "Karel Janecek Open 2024"]
[Site "Prague"]
[Date "2024.03.05"]
[Round "7.18"]
[White "Benci, Jozef"]
[Black "Botez, Alexandra"]
[Result "1-0"]
[ECO "C12"]
[WhiteElo "1938"]
[BlackElo "1977"]
[Annotator "RC"]
[PlyCount "95"]
[EventDate "2024.02.22"]
[EventType "swiss"]
[EventCountry "CZE"]
[SourceTitle "playchess.com"]
[Source "ChessBase"]
[SourceQuality "1"]
[TimeControl "40/5400+30:1800+30"]

1. e4 {[%emt 0:00:03]} e6 {[%emt 0:00:06]} 2. d4 {[%emt 0:00:10]} d5 {[%emt 0:00:03]} 3. Nc3 {[%emt 0:00:07]} Nf6 {[%emt 0:00:28]} 4. Bg5 {[%emt 0:00:06]} Bb4 {[%emt 0:00:08]} 5. e5 {[%emt 0:00:07]} h6 {[%emt 0:00:05]} 6. Bd2 {[%emt 0:00:05]} Bxc3 {[%emt 0:00:15]} 7. bxc3 {[%emt 0:00:02]} Ne4 {[%emt 0:00:09]} 8. Bc1 {[%emt 0:00:08]} c5 {[%emt 0:01:23]} 9. Ne2 {[%emt 0:00:29]} Nc6 {[%emt 0:06:00]} 10. f3 {[%emt 0:03:01]} Ng5 {[%emt 0:01:08]} 11. h4 {[%emt 0:00:23]} Nh7 {[%emt 0:00:09]} 12. g4 {[%emt 0:06:49]} Nf8 {[%emt 0:03:05]} 13. Nf4 {[%emt 0:08:53]} Nd7 {[%emt 0:01:28]} 14. Nh5 {[%emt 0:03:48]} g6 {[%emt 0:02:35]} 15. Ng3 {[%emt 0:08:33]} Qa5 {[%emt 0:00:40]} 16. Bd2 {[%emt 0:02:03]} Qa4 {[%emt 0:00:09]} 17. Be3 {[%emt 0:07:57]} b6 {[%emt 0:00:37]} 18. f4 {[%emt 0:05:59]} Ba6 {[%emt 0:02:14]} 19. Bxa6 {[%emt 0:06:56]} Qxa6 {[%emt 0:00:08]} 20. Kf2 {[%emt 0:01:04]} O-O-O {[%emt 0:00:45]} 21. a4 {[%emt 0:03:18]} Na5 {[%emt 0:00:51]} 22. Qf3 {[%emt 0:05:22]} Qc4 {[%emt 0:05:03]} 23. Ne2 {[%emt 0:00:57]} f6 {[%emt 0:00:34]} 24. exf6 {[%emt 0:09:45]} Nxf6 {[%emt 0:00:29]} 25. Kg2 {[%emt 0:00:27]} Ne4 {[%emt 0:01:21]} 26. Bf2 {[%emt 0:01:20]} Rhf8 {[%emt 0:06:05]} 27. Qd3 {[%emt 0:05:16]} h5 {[%emt 0:10:39]} 28. g5 {[%emt 0:01:53]} Rde8 {[%emt 0:13:17]} 29. Be3 {[%emt 0:01:13]} Kc7 {[%emt 0:01:45]} 30. Rhd1 {[%emt 0:00:46]} Kc6 {[%emt 0:01:42]} 31. Ra3 {[%emt 0:02:00]} Rf5 {[%emt 0:02:30]} 32. Ng3 {[%emt 0:01:06]} Nxg3 {[%emt 0:00:06]} 33. Kxg3 {[%emt 0:00:09]} Ref8 {[%emt 0:00:15]} 34. Qd2 {[%emt 0:08:19]} Qa6 {[%emt 0:03:54]} 35. dxc5 {[%emt 0:01:28]} bxc5 {[%emt 0:01:52]} 36. c4 {[%emt 0:02:41]} Nxc4 {[%emt 0:00:33]} 37. Qe2 {[%emt 0:03:49]} Qc8 {[%emt 0:00:29]} 38. Rc3 {[%emt 0:00:37]} Qc7 {[%emt 0:08:58]} 39. Rxc4 {[%emt 0:01:00]} dxc4 {[%emt 0:01:00]} 40. Qxc4 {[%emt 0:00:01]} Qb6 {[%emt 0:26:41]} 41. a5 {[%emt 0:13:11]} Qb4 {[%emt 0:07:34]} 42. Qxe6+ {[%emt 0:01:16]} Kb5 {[%emt 0:05:19]} 43. Qd7+ {[%emt 0:00:47]} Kxa5 {[%emt 0:00:51]} 44. Ra1+ {[%emt 0:00:42]} Kb6 {[%emt 0:00:18]} 45. Qxa7+ {[%emt 0:00:20]} Kc6 {[%emt 0:00:07]} 46. Ra6+ {[%emt 0:00:05]} Kd5 {[%emt 0:00:08]} 47. Qd7+ {[%emt 0:00:10]} Kc4 {[%emt 0:00:35]} 48. Qd3# {[%emt 0:00:07]} 1-0

[Event "Karel Janecek Open 2024"]
[Site "Prague"]
[Date "2024.03.05"]
[Round "7.19"]
[White "Botez, Andrea"]
[Black "Janik, Marek Tobias"]
[Result "1-0"]
[ECO "D00"]
[WhiteElo "1709"]
[BlackElo "1971"]
[Annotator "NA RC"]
[PlyCount "73"]
[EventDate "2024.02.22"]
[EventType "swiss"]
[EventCountry "CZE"]
[SourceTitle "playchess.com"]
[Source "ChessBase"]
[SourceQuality "1"]
[TimeControl "40/5400+30:1800+30"]

1. d4 {[%emt 0:07:03]} d5 {[%emt 0:00:08]} 2. Nc3 {[%emt 0:00:04]} Nf6 {[%emt 0:00:05]} 3. Bf4 {[%emt 0:00:16]} e6 {[%emt 0:00:10]} 4. e3 {[%emt 0:00:20]} Bb4 {[%emt 0:00:34]} 5. Bd3 {[%emt 0:00:13]} c5 {[%emt 0:00:26]} 6. dxc5 {[%emt 0:00:06]} Nbd7 {[%emt 0:00:11]} 7. Nf3 {[%emt 0:00:05]} Nxc5 {[%emt 0:00:14]} 8. O-O {[%emt 0:00:07]} O-O {[%emt 0:03:42]} 9. Ne2 {[%emt 0:00:24]} Nxd3 {[%emt 0:01:05]} 10. cxd3 {[%emt 0:00:18]} Bd6 {[%emt 0:06:08]} 11. Rc1 {[%emt 0:06:46]} Bxf4 {[%emt 0:07:26]} 12. Nxf4 {[%emt 0:00:21]} Qd6 {[%emt 0:00:34]} 13. d4 {[%emt 0:01:49]} Bd7 {[%emt 0:14:31]} 14. Qb3 {[%emt 0:06:31]} Qa6 {[%emt 0:16:13]} 15. Ne5 {[%emt 0:45:21]} Bb5 {[%emt 0:01:56]} 16. Rfe1 {[%emt 0:02:09]} Nd7 {[%emt 0:11:57]} 17. Nfd3 {[%emt 0:03:26]} Nxe5 {[%emt 0:06:26]} 18. Nxe5 {[%emt 0:00:42]} f6 {[%emt 0:03:47]} 19. Nf3 {[%emt 0:00:12]} Rac8 {[%emt 0:04:27]} 20. Qb4 {[%emt 0:03:26]} Rc6 {[%emt 0:03:31]} 21. Nd2 {[%emt 0:14:30]} Rfc8 {[%emt 0:15:15]} 22. Rxc6 {[%emt 0:00:27]} Qxc6 {[%emt 0:00:09]} 23. Nb3 {[%emt 0:00:52]} b6 {[%emt 0:00:28]} 24. f3 {[%emt 0:03:52]} a5 {[%emt 0:02:10]} 25. Qd2 {[%emt 0:02:37]} a4 {[%emt 0:00:46]} 26. Na1 {[%emt 0:00:31]} Qc4 {[%emt 0:00:26]} 27. b3 {[%emt 0:00:30]} Qc3 {[%emt 0:00:06]} 28. Qd1 {[%emt 0:00:56]} a3 {[%emt 0:00:21]} 29. e4 {[%emt 0:00:34]} Qb2 {[%emt 0:01:08]} 30. exd5 exd5 {[%emt 0:00:01]} 31. Qb1 {[%emt 0:00:57]} Qxd4+ {[%emt 0:00:25]} 32. Kh1 {[%emt 0:00:02]} Bd3 {[%emt 0:00:55]} 33. Qd1 {[%emt 0:00:14]} Qf2 {[%emt 0:00:43]} 34. Rg1 {[%emt 0:00:39]} Rc3 {[%emt 0:00:31]} 35. b4 {[%emt 0:00:45]} Qxa2 {[%emt 0:00:33]} 36. Qe1 {[%emt 0:00:13]} Kf8 {[%emt 0:00:31]} 37. Qxc3 {[%emt 0:00:10]} 1-0